Cogmind - Beta 12 @@@ ROGUE MODE // 2023.10.26 @ 05:15:58 Player: Dribix Result: Destroyed self with Rocket Launcher Performance ------------- Evolutions (2) 1000 Regions Visited (5) 1000 Robots Destroyed (30) 150 Value Destroyed (885) 885 Prototype IDs (0) 0 Alien Tech Used (0) 0 Bonus (200) 200 TOTAL SCORE: 3235 Bonus ------- Entered Garrisons 200 Cogmind --------- Core Integrity 0/550 Matter 159/300 Energy 82/100 System Corruption 5% Temperature Cool (9) Movement Core (150) Ox2 Location -8/Garrison Parts ------- > --- POWER (2) -------- (None) > --- PROPULSION (3) --- (None) > --- UTILITY (3) ------ Visual Processing Unit > --- WEAPON (3) ------- Heavy Assault Rifle Rocket Launcher > --- INVENTORY (5) ---- Targeting Computer Grenade Launcher Peak State ------------ > --- POWER ------------ Light Nuclear Core > --- PROPULSION ------- Aluminum Leg Improved Aluminum Leg > --- UTILITY ---------- Small Storage Unit Visual Processing Unit Improved Light Armor Plating > --- WEAPON ----------- Heavy Particle Cannon Heavy Assault Rifle Plasma Flamer > --- INVENTORY -------- Targeting Computer Field Laser Heavy Assault Rifle Grenade Launcher Rocket Launcher [Rating: 22] Favorites ----------- Power Ion Engine Engine Ion Engine Power Core Light Nuclear Core Propulsion Improved Aluminum Leg Leg Improved Aluminum Leg Utility Small Storage Unit Storage Small Storage Unit Processor Visual Processing Unit Protection Light Armor Plating Weapon Rocket Launcher Energy Gun Field Laser Energy Cannon Light EM Pulse Cannon Ballistic Gun Assault Rifle Launcher Rocket Launcher Special Weapon Plasma Flamer Build | -11 -10 -10 -9 -8 -8 ------- Run | Jun Mat Min Mat Mat Gar Slots Evolved 4 | . . . 2 2 . Power 1 | . . . 1 . . Propulsion 1 | . . . . 1 . Utility 1 | . . . 1 . . Weapon 1 | . . . . 1 . Parts Attached 33 | 5 6 7 6 4 5 Power 4 | 1 1 . 1 1 . Engine 3 | 1 1 . 1 . . Core 1 | . . . . 1 . Reactor . | . . . . . . Propulsion 7 | 2 2 2 . 1 . Treads . | . . . . . . Leg 7 | 2 2 2 . 1 . Wheel . | . . . . . . Hover . | . . . . . . Flight . | . . . . . . Utility 6 | . 3 . 2 1 . Device . | . . . . . . Storage 2 | . 2 . . . . Processor 1 | . . . 1 . . Hackware . | . . . . . . Protection 3 | . 1 . 1 1 . Artifact . | . . . . . . Weapon 16 | 2 . 5 3 1 5 Energy Gun 1 | . . . . . 1 Energy Cannon 2 | . . 1 . . 1 Ballistic Gun 6 | 2 . 2 . 1 1 Ballistic Cannon . | . . . . . . Launcher 6 | . . 2 3 . 1 Special Weapon 1 | . . . . . 1 Impact Weapon . | . . . . . . Slashing Weapon . | . . . . . . Piercing Weapon . | . . . . . . Special Melee Weapon . | . . . . . . Unidentified Prototypes . | . . . . . . Parts Lost 12 | . 1 . . . 11 Power 2 | . . . . . 2 Propulsion 3 | . 1 . . . 2 Utility 2 | . . . . . 2 Weapon 5 | . . . . . 5 Highest Loss Streak 11 | . 1 . . . 11 To Critical Strikes . | . . . . . . Average Slot Usage (%) 92 | . 96 100 98 84 48 Engine 15 | . 14 14 22 16 2 Leg 22 | . 28 28 22 12 7 Storage 11 | . 13 14 11 9 6 Processor 3 | . . . 6 9 9 Protection 11 | . 11 14 13 9 4 Energy Cannon 2 | . . 9 . . 2 Ballistic Gun 15 | . 28 18 4 8 4 Launcher 7 | . . . 17 18 5 Naked Turns . | . . . . . . Heaviest Build 29 | 6 26 19 28 29 29 Greatest Support 26 | 20 26 26 26 26 23 Greatest Overweight (x) 5 | . 1 . 1 2 5 Average Overweight (x) . | . . . . 1 . Largest Inventory Capacity 15 | 5 15 8 8 8 8 Average Capacity 7 | 5 7 8 8 8 7 Most Carried 8 | 3 8 8 8 8 6 Average Carried 6 | . 5 7 6 7 4 Final Capacity 8 | 5 8 8 8 8 5 Final Carried 8 | 2 8 6 6 6 2 Class Distribution -------------------- 82% | Mutant 10% | Tank 7% | Bomber Dominant Class ---------------- Mutant | -10/Materials Mutant | -10/Mines Mutant | -9/Materials Tank | -8/Materials Mutant | -8/Garrison Resources | -11 -10 -10 -9 -8 -8 ----------- Run | Jun Mat Min Mat Mat Gar Matter Collected 837 | 262 73 214 193 59 36 Remotely . | . . . . . . Salvage Created 637 | 35 168 132 104 162 36 Parts 49 | 2 23 6 6 8 4 Haulers Intercepted . | . . . . . . Recyclers Shooed . | . . . . . . Parts Field Recycled . | . . . . . . Retrieved Matter . | . . . . . . Parts Self-Destructed . | . . . . . . Prevented . | . . . . . . Kills | -11 -10 -10 -9 -8 -8 ------- Run | Jun Mat Min Mat Mat Gar Combat Hostiles Destroyed 23 | 1 5 7 4 5 1 Guns 11 | 1 5 4 . . 1 AOE 12 | . . 3 4 5 . Classes Destroyed 10 | 1 6 1 1 . 1 Worker 3 | . 1 . 2 . . Builder 1 | . 1 . . . . Tunneler 2 | . 2 . . . . Operator 1 | . 1 . . . . Watcher 2 | . 1 . . 1 . Swarmer 6 | . 3 3 . . . Grunt 12 | 1 2 2 3 4 . Sentry 2 | . . . 1 1 . Programmer 1 | . . . . . 1 Assembled 2 | . . 2 . . . Best Kill Streak 6 | 1 6 3 5 5 1 Combat Bots Only 4 | 1 3 3 3 4 1 Max Kills in Single Turn 5 | 1 5 2 2 2 1 Gunslinging 1 | . 1 . . . . Exploded 2 | . . 2 1 2 . Melee . | . . . . . . Uniques/NPCs Destroyed . | . . . . . . Combat | -11 -10 -10 -9 -8 -8 -------- Run | Jun Mat Min Mat Mat Gar Damage Taken 2461 | 12 237 410 151 71 1580 Core 654 | . 10 41 37 15 551 Absorbed by Shields . | . . . . . . Redirected to Shielding 62 | . . . 49 13 . Core Remaining (%) 89 | 100 . 79 90 . . Volleys Fired 64 | 3 16 23 6 5 11 Largest 3 | 2 2 2 2 3 3 Hottest 198 | 40 40 76 66 89 198 Shots Fired 134 | 6 32 46 12 15 23 Gun 90 | 6 32 37 . 5 10 Cannon 11 | . . 6 . . 5 Launcher 30 | . . 3 12 10 5 Special 3 | . . . . . 3 Kinetic 87 | 6 32 37 . 5 7 Thermal 11 | . . . . . 11 Explosive 30 | . . 3 12 10 5 Electromagnetic 6 | . . 6 . . . Robot Hit Streak 9 | 4 4 4 3 9 7 Robot Miss Streak 5 | 2 5 2 1 3 5 Penetration Max . | . . . . . . Secondary Targets 1 | . 1 . . . . Max Gunslinging Chain 1 | . 1 . . . . Shots Hit Robots 69 | 4 14 24 8 7 12 Core Hits 56 | 2 10 12 12 16 4 Critical Kills 1 | . . 1 . . . Critical Parts Destroyed . | . . . . . . Critical Strikes 2 | . . 1 . . 1 Burn 1 | . . . . . 1 Destroy 1 | . . 1 . . . Melee Attacks . | . . . . . . Impact . | . . . . . . Slashing . | . . . . . . Piercing . | . . . . . . Sneak Attacks . | . . . . . . Combat Hostiles . | . . . . . . Follow-up Attacks . | . . . . . . Damage Inflicted 2406 | 38 574 434 452 454 454 Guns 532 | 38 151 198 . 24 121 Cannons 150 | . . 63 . . 87 Explosions 1685 | . 422 164 452 430 217 Melee . | . . . . . . Ramming 10 | . 1 9 . . . Kinetic 474 | 38 151 198 . 24 63 Thermal 596 | . 422 . . . 174 Explosive 1263 | . . 164 452 430 217 Electromagnetic 63 | . . 63 . . . Impact . | . . . . . . Slashing . | . . . . . . Piercing . | . . . . . . Highest Corruption 5 | . . . . . 5 Average Corruption 4 | . . . . . 4 Corruption Purged . | . . . . . . Corruption Blocked . | . . . . . . Effects 2 | . . . . . 2 Message Errors 1 | . . . . . 1 Energy Discharges 1 | . . . . . 1 Overload Shots . | . . . . . . Overflow Damage 179 | . 177 . . 2 . Projectiles . | . . . . . . Explosions 179 | . 177 . . 2 . Melee . | . . . . . . Knockbacks . | . . . . . . Impact . | . . . . . . Kinetic . | . . . . . . Secondary . | . . . . . . Self-Inflicted Damage 290 | . 151 31 26 . 82 Shots 7 | . 2 1 2 . 2 Rammed . | . . . . . . Targets Rammed 4 | . 2 2 . . . Kicked 4 | . 2 2 . . . Crushed . | . . . . . . Highest Temperature 480 | 6 30 108 63 66 480 Average Temperature 73 | 6 6 33 29 23 212 Received Heat Transfer 471 | 6 24 105 75 27 234 Effects 1 | . . . . . 1 Shutdowns 1 | . . . . . 1 Siege Activations . | . . . . . . Robots Corrupted . | . . . . . . Combat Hostiles . | . . . . . . Parts Fried . | . . . . . . Impact Corruptions . | . . . . . . Robots Melted . | . . . . . . Combat Hostiles . | . . . . . . Parts Melted 2 | . 1 . . . 1 Heat Transferred 756 | . 300 . . . 456 Parts Sabotaged . | . . . . . . Parts Stolen . | . . . . . . Parts Stripped . | . . . . . . Power Chain Reactions . | . . . . . . Missiles Intercepted . | . . . . . . Alert | -11 -10 -10 -9 -8 -8 ------- Run | Jun Mat Min Mat Mat Gar Peak Influence 300 | 20 300 225 259 244 182 Initial 158 | . 13 39 16 24 158 Average 114 | 2 136 134 88 115 130 Maximum Alert Level 1 | . 1 1 1 1 . Low Security (%) 81 | 100 74 93 74 68 100 Level 1 18 | . 25 6 25 31 . Level 2 . | . . . . . . Level 3 . | . . . . . . Level 4 . | . . . . . . Level 5 . | . . . . . . High Security . | . . . . . . Max Security . | . . . . . . Squads Dispatched 4 | . 2 . 2 . . Investigation 2 | . . . 2 . . Extermination . | . . . . . . Reinforcement 2 | . 2 . . . . Assault . | . . . . . . Garrison . | . . . . . . Intercept . | . . . . . . Searches Triggered . | . . . . . . Construction Impeded . | . . . . . . Haulers Reinforced . | . . . . . . Active Scanning Responses . | . . . . . . Cargo Convoy Interrupts . | . . . . . . Stealth | -11 -10 -10 -9 -8 -8 --------- Run | Jun Mat Min Mat Mat Gar Distress Signals 1 | . . . 1 . . Communications Jammed . | . . . . . . Distress Signals . | . . . . . . Times Spotted 39 | 1 9 8 4 7 10 Peak Tracking Total 7 | 1 4 3 3 3 7 Tactical Retreats 1 | . . 1 . . . Traps | -11 -10 -10 -9 -8 -8 ------- Run | Jun Mat Min Mat Mat Gar Traps Triggered 2 | . . . 1 1 . Indirectly . | . . . . . . Trap Hack Attempts . | . . . . . . Triggered . | . . . . . . Disarmed . | . . . . . . Reprogrammed . | . . . . . . Reused . | . . . . . . Traps Extracted . | . . . . . . Installed . | . . . . . . Triggered . | . . . . . . Machines | -11 -10 -10 -9 -8 -8 ---------- Run | Jun Mat Min Mat Mat Gar Machines Disabled 12 | . 7 1 3 1 . Max in Single Turn 7 | . 7 1 2 1 . Machines Repaired . | . . . . . . Machines Sabotaged . | . . . . . . Overloaded Fab Kills . | . . . . . . Hacking | -11 -10 -10 -9 -8 -8 --------- Run | Jun Mat Min Mat Mat Gar Machines Accessed 4 | . 1 . 2 1 . Terminals 2 | . 1 . 1 . . Fabricators . | . . . . . . Repair Stations . | . . . . . . Recycling Units 1 | . . . 1 . . Scanalyzers . | . . . . . . Garrison Access 1 | . . . . 1 . Total Hacks 9 | . 2 . 6 1 . Successful 7 | . 1 . 5 1 . Failed 2 | . 1 . 1 . . Catastrophic . | . . . . . . Database Lockouts . | . . . . . . Manual . | . . . . . . Terminals 4 | . 2 . 2 . . Fabricators . | . . . . . . Repair Stations . | . . . . . . Recycling Units 4 | . . . 4 . . Scanalyzers . | . . . . . . Garrison Access 1 | . . . . 1 . Terminal Hacks 3 | . 1 . 2 . . Record 1 | . 1 . . . . Alert Level 1 | . . . 1 . . Unreport Threat 1 | . . . 1 . . Fabricator Hacks . | . . . . . . Repair Station Hacks . | . . . . . . Recycling Unit Hacks 3 | . . . 3 . . Recycle Component 2 | . . . 2 . . Process 1 | . . . 1 . . Scanalyzer . | . . . . . . Garrison Access Hacks 1 | . . . . 1 . Unlock Access 1 | . . . . 1 . Unauthorized Hacks . | . . . . . . Terminals . | . . . . . . Fabricators . | . . . . . . Repair Stations . | . . . . . . Recycling Units . | . . . . . . Scanalyzers . | . . . . . . Garrison Access . | . . . . . . Data Cores Recovered . | . . . . . . Used . | . . . . . . Hacking Detections 3 | . 1 . 2 . . Full Trace Events 1 | . . . 1 . . Feedback Events . | . . . . . . Feedback Blocked . | . . . . . . Robot Schematics Acquired . | . . . . . . Robots Built . | . . . . . . Authchips . | . . . . . . Time . | . . . . . . Total Robot Build Rating . | . . . . . . Part Schematics Acquired . | . . . . . . Parts Built . | . . . . . . Authchips . | . . . . . . Time . | . . . . . . Total Part Build Rating . | . . . . . . Parts Repaired . | . . . . . . Time . | . . . . . . Parts Recycled 2 | . . . 2 . . Recycled Matter 192 | . . . 192 . . Retrieved Matter . | . . . . . . Retrieved Components . | . . . . . . Parts Scanalyzed . | . . . . . . Part Schematics Acquired . | . . . . . . Parts Damaged . | . . . . . . Bothacking | -11 -10 -10 -9 -8 -8 ------------ Run | Jun Mat Min Mat Mat Gar Used RIF Installer . | . . . . . . Robots Hacked . | . . . . . . Non-combat . | . . . . . . Combat . | . . . . . . Robot Hacks Applied . | . . . . . . Relay Couplers Released . | . . . . . . Fabnet Peak Effective % . | . . . . . . Robots Rewired . | . . . . . . Allies Hacked . | . . . . . . Hacks Repelled . | . . . . . . Allies | -11 -10 -10 -9 -8 -8 -------- Run | Jun Mat Min Mat Mat Gar Total Allies . | . . . . . . Largest Group . | . . . . . . Highest-Rated Group . | . . . . . . Highest-Rated Ally . | . . . . . . Total Orders . | . . . . . . Ally Attacks . | . . . . . . Total Damage . | . . . . . . Kills . | . . . . . . Allies Corrupted . | . . . . . . Allies Melted . | . . . . . . Intel | -11 -10 -10 -9 -8 -8 ------- Run | Jun Mat Min Mat Mat Gar Robot Analysis Total . | . . . . . . Derelict Logs Recovered 1 | . . 1 . . . Drone Launches . | . . . . . . Drone Recoveries . | . . . . . . Exploration | -11 -10 -10 -9 -8 -8 ------------- Run | Jun Mat Min Mat Mat Gar Turns Passed 1902 | 100 491 480 400 316 115 Spaces Moved 1247 | 80 330 319 291 133 94 Core 100 | 23 . . . . 77 Treads . | . . . . . . Legs 1147 | 57 330 319 291 133 17 Wheels . | . . . . . . Hover . | . . . . . . Flight . | . . . . . . Fastest Speed 50 | 50 120 120 120 120 50 Average Speed 127 | 99 120 120 125 216 84 Slowest Speed 300 | 120 190 120 190 260 300 Overloaded Moves . | . . . . . . Propulsion Burnouts . | . . . . . . Robots Hopped . | . . . . . . Cave-ins Triggered . | . . . . . . Exploration Rate (%) 30 | 5 56 47 37 17 19 Regions Visited 5 Branch Regions 1 Pre-discovered Areas 1 | . . 1 . . . Known Exits Taken 1 | . . . . 1 . Unknown Exits Taken 4 | 1 1 1 1 . . Scrap Searched . | . . . . . . Spaces Dug . | . . . . . . Terrain Destroyed 227 | . 29 24 109 45 20 Melee . | . . . . . . Projectile . | . . . . . . AOE 227 | . 29 24 109 45 20 Terrain Rammed . | . . . . . . Walls Destroyed . | . . . . . . Machines Disabled . | . . . . . . Actions | -11 -10 -10 -9 -8 -8 --------- Run | Jun Mat Min Mat Mat Gar Total 1440 | 94 400 373 312 151 110 Wait 36 | . 20 16 . . . Move 1242 | 79 329 318 290 132 94 Hop . | . . . . . . Pick Up 39 | 7 17 2 7 6 . Fast Attach . | . . . . . . Attach 21 | 5 6 2 2 2 4 Detach 3 | . 2 1 . . . Swap 12 | . . 5 4 2 1 Drop 19 | . 8 4 3 4 . Fire 64 | 3 16 23 6 5 11 Melee . | . . . . . . Ram . | . . . . . . Kick 4 | . 2 2 . . . Crush . | . . . . . . Escape Stasis . | . . . . . . Rewire . | . . . . . . Trap . | . . . . . . Miscellaneous . | . . . . . . Route ------- -11/Junkyard -10/Materials (discovered 3 exits: *Mat / [*Min x2]) -10/Mines -9/Materials (discovered 2 exits: *Mat / [*Min]) -8/Materials (discovered 2 exits: [*Fac] / Gar) -8/Garrison History --------- Turn | Location | Event 2 | -11/Junkyard | Met Revision 17 78 | -11/Junkyard | Discovered new exit (range 8) 101 | -11/Junkyard | Entered Materials 144 | -10/Materials | Discovered new exit (range 6) 235 | -10/Materials | Discovered new exit (range 10) 318 | -10/Materials | Build established: Mutant 543 | -10/Materials | Discovered new exit (range 6) 592 | -10/Materials | Entered Mines 649 | -10/Mines | A weapon hastily lodged in a ceiling crevice suddenly fell to the ground 771 | -10/Mines | Received a Rocket Launcher from a helpful Derelict 795 | -10/Mines | Assembled infested the area 850 | -10/Mines | Discovered new exit (range 6) 1072 | -10/Mines | Entered Materials 1072 | -9/Materials | Evolved 2 slots: Power x1, Utility x1 1240 | -9/Materials | Discovered new exit (range 8) 1357 | -9/Materials | Discovered new exit (range 9) 1472 | -9/Materials | Entered another Materials area 1472 | -8/Materials | Evolved 2 slots: Propulsion x1, Weapon x1 1637 | -8/Materials | Identified exit to Garrison 1735 | -8/Materials | Discovered new exit (range 17) 1788 | -8/Materials | Entered Garrison 1808 | -8/Garrison | Triggered checkpoint 1856 | -8/Garrison | Core integrity fell below 50% 1862 | -8/Garrison | Core integrity fell below 20% 1896 | -8/Garrison | Lost 11 parts (2p2n2u5w) 1899 | -8/Garrison | Triggered checkpoint 1903 | -8/Garrison | Destroyed self with Rocket Launcher Last Messages --------------- P-60 Hacker destroyed. Critical hit (Burn: +37). Imp. Aluminum Leg destroyed. Hvy. Assault Rifle destroyed. Acquired 36 matter. Imp. Light Armor Plating destroyed. Power failure, Lgt. Nuclear Core shutdown. Plasma Flamer destroyed. Aluminum Leg destroyed. Hvy. Particle Cannon destroyed. Lgt. Nuclear Core destroyed. P-60 Hacker suffers critical hit (Burn). Field Laser destroyed. System corrupted: Energy discharge (-34). Sml. Storage Unit destroyed. Beams of light sweep through the air. An alarm sounds. S-10 Pest destroyed. 1AV8XF,RUI,OQLW#